bitfinex/quotes_SOLUSD_20250903
["timestamp","ask_amount","ask_price","bid_price","bid_amount"]
[1756896426572,18.03436545,210.44,210.43,0.03]
[1756896426976,23.39631374,210.44,210.43,0.03]
[1756896427360,25.30175616,210.44,210.43,0.03]
[1756896427675,4.75194829,210.44,210.43,0.71]
[1756896429780,30.75174379,210.45,210.43,0.71]
[1756896430777,30.75174379,210.45,210.44,0.68]
[1756896431364,30.75174379,210.45,210.43,0.03]
[1756896431565,30.75174379,210.45,210.43,0.7]
[1756896433664,26.0,210.45,210.43,0.03]
[1756896433886,4.7518049,210.45,210.44,0.67]
[1756896434498,30.7518049,210.45,210.44,0.67]
[1756896434671,2.84272899,210.49,210.44,0.67]
[1756896434995,4.75059382,210.5,210.45,2.84272899]
[1756896435170,13.65559401,210.51,210.46,0.67]
[1756896435171,4.81042095,210.51,210.46,0.67]
[1756896435369,6.71522821,210.51,210.46,0.67]
[1756896435579,4.81042095,210.51,210.46,0.67]
[1756896435790,26.0,210.49,210.46,0.67]
[1756896436489,26.0,210.49,210.46,3.51272899]
[1756896436692,4.81042095,210.51,210.47,0.67]
[1756896436882,26.0,210.49,210.47,0.67]
[1756896438589,0.06,210.51,210.48,2.84272899]
[1756896438782,0.06,210.51,210.49,0.67]
[1756896439085,26.06,210.51,210.49,0.67]
[1756896439291,26.06,210.51,210.5,0.67]
[1756896439797,26.06,210.51,210.46,2.84272899]
[1756896439976,30.81040894,210.51,210.48,0.67]
[1756896440175,4.81040894,210.51,210.48,0.67]
[1756896440375,2.84272899,210.49,210.43,0.03]
[1756896440673,4.75081951,210.49,210.45,0.67]
[1756896440883,4.75081951,210.49,210.46,0.67]
[1756896441293,30.75081951,210.49,210.46,0.67]
[1756896442602,26.0,210.49,210.47,0.67]
[1756896442782,26.0,210.49,210.48,0.67]
[1756896443189,26.06,210.49,210.48,0.67]
[1756896443510,0.06,210.49,210.48,3.51272899]
[1756896443693,0.06,210.49,210.48,0.67]
[1756896448408,0.06,210.49,210.46,2.84272899]
[1756896448597,0.06,210.49,210.46,0.67]
[1756896449004,0.06,210.49,210.45,2.84272899]
[1756896449201,0.06,210.49,210.47,0.67]
[1756896449506,0.06,210.49,210.45,2.84272899]
[1756896449712,0.06,210.49,210.46,0.67]
[1756896450413,0.06,210.49,210.47,0.67]
[1756896451011,0.06,210.49,210.45,0.67]
[1756896451208,26.06,210.49,210.44,0.03]
[1756896451405,28.90272899,210.49,210.46,0.67]
[1756896451994,30.75104522,210.48,210.46,0.67]
[1756896452611,30.75104522,210.48,210.44,0.7]
[1756896452823,30.75104522,210.48,210.45,0.67]
[1756896453332,26.0,210.48,210.46,0.67]
[1756896455592,26.0,210.48,210.44,2.87272899]
[1756896455904,26.0,210.48,210.46,0.67]
[1756896456111,26.0,210.48,210.44,0.03]
[1756896456310,30.75106698,210.48,210.45,0.67]
[1756896456626,3.45272899,210.47,210.44,0.03]
[1756896456924,28.84272899,210.45,210.44,0.03]
[1756896457425,34.20445148,210.45,210.44,0.03]
[1756896458293,47.80004549,210.45,210.44,0.03]
[1756896458899,49.70530639,210.45,210.44,0.03]
[1756896462722,86.74530639,210.45,210.44,0.03]
[1756896463020,83.2925774,210.45,210.44,0.03]
[1756896463223,49.09530639,210.45,210.44,0.03]
[1756896463405,86.13530639,210.45,210.44,0.03]
[1756896463801,49.09530639,210.45,210.44,0.03]
[1756896464421,46.2525774,210.45,210.44,0.03]
[1756896464623,49.09530639,210.45,210.44,0.03]
[1756896471325,49.70530639,210.45,210.44,0.03]
[1756896473222,49.09530639,210.45,210.44,0.03]
[1756896474031,49.70530639,210.45,210.44,0.03]
[1756896474331,49.09530639,210.45,210.44,0.03]
[1756896474513,86.13530639,210.45,210.44,0.03]
[1756896476037,49.09530639,210.45,210.44,0.03]
[1756896476335,86.13530639,210.45,210.44,0.03]
[1756896476539,83.2925774,210.45,210.44,0.03]
[1756896476738,86.13530639,210.45,210.44,0.03]
[1756896478940,86.19530639,210.45,210.44,0.03]
[1756896480126,83.3525774,210.45,210.44,0.03]
[1756896480439,86.17530639,210.45,210.44,0.03]
[1756896482341,86.78530639,210.45,210.44,0.03]
[1756896482727,86.17530639,210.45,210.44,0.03]
[1756896486747,83.3325774,210.45,210.44,0.03]
[1756896487240,86.17530639,210.45,210.44,0.03]
[1756896488932,49.15530639,210.45,210.44,0.73]
[1756896489134,86.17530639,210.45,210.44,0.73]
[1756896489453,32.71698339,210.45,210.44,0.73]
[1756896489819,49.15530639,210.45,210.44,0.03]
[1756896491446,50.75536714,210.45,210.44,0.03]
[1756896491823,51.36536714,210.45,210.43,0.03]
[1756896492034,41.46278974,210.44,210.43,0.03]
[1756896492737,37.02,210.44,210.43,0.03]
[1756896492942,41.46278974,210.44,210.43,0.03]
[1756896493531,41.77194829,210.44,210.43,0.03]
[1756896493728,46.21473803,210.44,210.43,0.03]
[1756896493947,48.12027122,210.44,210.43,0.03]
[1756896496650,43.67748148,210.44,210.43,0.03]
[1756896496853,48.12027122,210.44,210.43,0.03]
[1756896497959,48.12027122,210.44,210.43,0.72]
[1756896498448,48.10027122,210.44,210.43,0.72]
[1756896498648,48.10027122,210.44,210.43,0.03]
[1756896499853,48.10027122,210.44,210.43,0.72]
[1756896500457,48.10027122,210.44,210.43,0.03]
[1756896500760,48.10027122,210.44,210.43,0.72]
[1756896500956,48.10027122,210.44,210.43,0.03]
[1756896501658,61.69586523,210.44,210.43,0.03]
[1756896501967,44.03838375,210.42,210.41,0.03]
[1756896502165,81.03838375,210.42,210.41,0.03]
[1756896503051,87.69649848,210.42,210.41,0.03]
[1756896503252,88.30649848,210.42,210.41,0.03]
[1756896503872,13.59559401,210.41,210.4,0.03]
[1756896504042,24.03898423,210.41,210.4,0.03]
[1756896504364,26.0,210.41,210.4,0.72]
[1756896504666,41.50121798,210.41,210.4,0.72]
[1756896505046,1.90562397,210.41,210.4,0.72]
[1756896505245,32.65824979,210.41,210.4,0.72]
[1756896505470,6.65824979,210.41,210.4,0.72]
[1756896506248,32.65824979,210.41,210.4,0.72]
[1756896506449,6.65824979,210.41,210.4,0.72]
[1756896507163,32.65824979,210.41,210.4,0.72]
[1756896507672,6.65824979,210.41,210.4,0.72]
[1756896507967,32.65824979,210.41,210.4,0.72]
[1756896508658,1.90562397,210.41,210.4,5.16278974]
[1756896508963,0.06,210.45,210.4,5.16278974]
[1756896509261,5.22278974,210.45,210.42,4.44278974]
[1756896509467,5.22278974,210.45,210.43,0.69]
[1756896509765,5.22278974,210.45,210.4,0.03]
[1756896509766,4.81173023,210.45,210.44,0.69]
[1756896509965,26.0,210.42,210.4,0.72]
[1756896510156,26.0,210.41,210.4,0.03]
[1756896510357,30.44278974,210.41,210.4,0.03]
[1756896510559,32.34832293,210.41,210.4,0.03]
[1756896510753,45.94391694,210.41,210.4,0.03]
[1756896510958,89.53451742,210.41,210.4,0.03]
[1756896511168,94.28714324,210.41,210.4,1e-08]
[1756896511466,19.59619449,210.4,210.39,1e-08]
[1756896511649,24.64898423,210.4,210.39,1e-08]
[1756896512661,24.03898423,210.4,210.39,1e-08]
[1756896513069,26.55488059,210.4,210.39,1e-08]
[1756896513372,31.3077323,210.4,210.39,1e-08]
[1756896514653,30.6977323,210.4,210.39,1e-08]
[1756896515368,31.3077323,210.4,210.39,1e-08]
[1756896515954,30.6977323,210.4,210.39,1e-08]
[1756896516685,26.0,210.38,210.36,0.03]
[1756896516875,81.01838375,210.38,210.36,0.03]
[1756896517061,87.62898423,210.38,210.36,0.03]
[1756896517376,87.62898423,210.38,210.37,1e-08]
[1756896517558,87.62898423,210.38,210.35,0.03]
[1756896517559,13.59559401,210.37,210.35,1e-08]
[1756896517766,59.46117349,210.36,210.35,1e-08]
[1756896518083,66.07177397,210.36,210.35,1e-08]
[1756896518290,39.59559401,210.34,210.29,0.69]
[1756896518492,85.77259122,210.34,210.29,0.69]
[1756896518785,26.0,210.28,210.22,4.44278974]
[1756896518987,26.0,210.28,210.21,0.1]
[1756896519166,30.44278974,210.28,210.21,0.1]
[1756896519367,4.75757533,210.27,210.22,5.13278974]
[1756896519587,4.75757533,210.27,210.23,0.69]
[1756896520262,35.20036507,210.27,210.23,0.69]
[1756896520491,4.75601636,210.26,210.23,0.69]
[1756896520790,9.1988061,210.26,210.23,0.69]
[1756896521090,4.44278974,210.25,210.24,0.69]
[1756896521386,26.0,210.23,210.21,0.1]
[1756896521781,26.0,210.23,210.22,0.7]
[1756896521989,30.44278974,210.23,210.22,0.7]
[1756896522662,30.75669504,210.23,210.22,0.7]
[1756896523089,26.0,210.23,210.22,0.7]
[1756896524066,30.75669504,210.23,210.22,0.7]
[1756896525170,35.19948478,210.23,210.21,0.1]
[1756896525588,35.19948478,210.23,210.22,0.7]
[1756896526486,30.75669504,210.23,210.22,0.7]
[1756896527776,26.0,210.23,210.22,0.7]
[1756896527970,26.0,210.26,210.22,5.14278974]
[1756896528171,18.03838375,210.29,210.23,5.14278974]
[1756896528371,26.0,210.26,210.24,0.7]
[1756896528600,4.44278974,210.27,210.25,4.44278974]
[1756896528804,9.1974493,210.32,210.26,5.14278974]
[1756896528995,26.0,210.29,210.27,0.7]
[1756896529495,26.0,210.3,210.27,5.14278974]
[1756896529691,4.75690308,210.31,210.29,4.44278974]
[1756896529893,4.75690308,210.31,210.3,5.14278974]
[1756896530208,4.81621178,210.33,210.3,5.14278974]
[1756896530380,4.81621178,210.33,210.31,0.7]
[1756896530700,26.0,210.32,210.31,0.7]
[1756896531574,4.75465956,210.32,210.31,0.7]
[1756896531774,9.51106654,210.32,210.31,0.7]
[1756896532598,9.51106654,210.32,210.29,0.7]
[1756896532791,9.51106654,210.32,210.3,0.7]
[1756896532992,9.51106654,210.32,210.31,0.7]
[1756896533188,9.51106654,210.32,210.27,4.44278974]
[1756896533189,9.51106654,210.32,210.29,0.7]
[1756896533389,9.51106654,210.32,210.3,0.7]
[1756896533594,4.75465956,210.32,210.31,0.7]
[1756896533901,9.570636,210.33,210.31,0.7]
[1756896534087,35.570636,210.33,210.32,0.7]
[1756896534504,0.06,210.33,210.32,0.7]
[1756896534906,26.06,210.33,210.32,0.7]
[1756896538602,0.06,210.33,210.32,0.7]
[1756896538904,0.06,210.33,210.32,5.14278974]
[1756896540090,0.06,210.33,210.32,0.7]
[1756896540400,0.06,210.33,210.3,0.7]
[1756896540593,26.06,210.33,210.29,80.4]
[1756896540799,26.06,210.33,210.3,0.7]
[1756896541000,26.06,210.33,210.31,0.7]
[1756896541387,0.06,210.33,210.29,79.7]
[1756896541592,0.06,210.33,210.32,0.7]
[1756896542185,4.8144335,210.33,210.32,0.7]
[1756896542619,4.8144335,210.33,210.3,0.7]
[1756896542822,0.06,210.33,210.31,0.7]
[1756896543123,4.50278974,210.33,210.29,79.7]
[1756896543313,13.59559401,210.32,210.28,0.7]
[1756896543607,18.03838375,210.32,210.29,0.7]
[1756896543786,18.03838375,210.32,210.23,4.75669504]
[1756896543986,4.44278974,210.31,210.27,0.7]
[1756896544296,9.19786831,210.31,210.28,0.7]
[1756896545393,30.44278974,210.29,210.25,0.7]
[1756896545707,4.44278974,210.26,210.22,0.73]
[1756896546013,4.44278974,210.25,210.22,0.03]
[1756896546186,4.75646879,210.24,210.22,0.03]
[1756896546386,4.44278974,210.26,210.22,0.03]
[1756896546598,1.90689581,210.25,210.22,0.03]
[1756896547520,6.34968555,210.25,210.22,0.03]
[1756896548422,11.10606498,210.25,210.22,0.03]
[1756896548593,11.10606498,210.25,210.22,0.73]
[1756896548934,26.0,210.27,210.23,0.7]
[1756896549217,4.47278974,210.26,210.24,0.7]
[1756896550108,9.22888909,210.26,210.22,0.73]
[1756896550429,26.0,210.24,210.23,0.7]
[1756896551607,26.0,210.28,210.23,0.7]
[1756896551815,26.0,210.27,210.22,0.03]
[1756896552124,35.51031881,210.27,210.23,0.67]
[1756896552303,35.51031881,210.27,210.24,0.67]
[1756896553030,1.90671402,210.27,210.25,0.67]
[1756896553196,7.6028421,210.3,210.25,3.51772695]
[1756896553403,26.0,210.27,210.26,0.67]
[1756896556320,4.78688743,210.31,210.26,3.51772695]
[1756896556618,0.06,210.33,210.26,3.51772695]
[1756896556619,0.06,210.33,210.3,2.84772695]
[1756896556826,0.06,210.33,210.31,2.84772695]
[1756896557021,0.06,210.33,210.32,0.67]
[1756896557723,0.06,210.33,210.29,2.84772695]
[1756896558024,0.06,210.33,210.31,0.67]
[1756896559019,0.06,210.33,210.32,0.67]
[1756896562918,0.06,210.33,210.25,4.75597165]
[1756896563129,0.06,210.33,210.3,0.67]
[1756896563709,2.90772695,210.33,210.28,0.67]
[1756896563913,2.90772695,210.33,210.29,0.67]
[1756896564110,2.90772695,210.33,210.26,116.66]
[1756896564111,0.06,210.33,210.3,0.67]
[1756896564417,26.06,210.33,210.31,0.67]
[1756896564625,26.06,210.33,210.32,0.67]
[1756896564926,26.06,210.33,210.3,0.67]
[1756896565127,26.06,210.33,210.31,0.7]
[1756896565437,0.06,210.33,210.31,0.7]
[1756896565727,26.06,210.33,210.31,0.7]
[1756896566206,26.06,210.33,210.32,0.67]
[1756896566537,0.06,210.33,210.32,0.67]
[1756896566735,26.06,210.33,210.31,0.03]
[1756896566922,26.06,210.33,210.31,0.7]
[1756896568207,26.06,210.33,210.31,0.03]
[1756896568531,30.81448385,210.33,210.31,0.03]
[1756896568911,0.06,210.33,210.31,0.03]
[1756896570035,0.06,210.33,210.31,0.7]
[1756896570209,0.06,210.33,210.31,0.03]
[1756896570609,26.06,210.33,210.31,0.03]
[1756896571309,30.81457413,210.33,210.31,0.03]
[1756896572038,3.45772695,210.32,210.31,0.03]
[1756896572909,18.95967149,210.32,210.31,0.03]
[1756896573310,23.71433105,210.32,210.31,0.03]
[1756896579241,23.10433105,210.32,210.31,0.03]
[1756896579443,23.71433105,210.32,210.31,0.03]
[1756896579739,26.0,210.32,210.31,0.7]
[1756896580543,0.06,210.33,210.31,0.7]
[1756896580921,0.06,210.33,210.32,0.67]
[1756896582529,26.06,210.33,210.32,0.67]
[1756896583523,30.8144335,210.33,210.32,0.67]
[1756896584124,30.8144335,210.33,210.31,0.03]
[1756896584351,30.8144335,210.33,210.31,0.7]
[1756896584542,30.8144335,210.33,210.32,0.67]
[1756896584841,30.8144335,210.33,210.31,0.03]
[1756896585026,33.66216045,210.33,210.31,0.03]
[1756896585440,33.66216045,210.33,210.31,0.7]
[1756896585938,30.8144335,210.33,210.32,0.67]
[1756896586341,26.06,210.33,210.32,0.67]
[1756896589339,0.06,210.33,210.32,0.67]
[1756896591547,0.06,210.33,210.31,0.03]
[1756896591757,0.06,210.33,210.31,0.7]
[1756896595059,0.06,210.33,210.31,0.03]
[1756896595359,0.06,210.33,210.31,0.7]
[1756896595562,0.06,210.33,210.32,0.67]
[1756896596469,26.06,210.33,210.32,0.67]
[1756896598968,26.06,210.33,210.31,0.03]
[1756896599173,26.06,210.33,210.31,0.7]
[1756896599665,26.06,210.33,210.31,0.03]
[1756896599860,0.06,210.33,210.32,0.67]
[1756896600071,26.06,210.33,210.32,0.67]
[1756896600261,30.81449715,210.33,210.31,0.03]
[1756896600452,30.81449715,210.33,210.31,0.7]
[1756896604168,30.81449715,210.33,210.31,0.03]
[1756896605052,30.81449715,210.33,210.31,0.7]
[1756896605668,0.06,210.33,210.32,0.67]
[1756896606164,0.06,210.33,210.31,0.03]
[1756896606165,26.06,210.33,210.31,0.03]
[1756896606562,30.81443775,210.33,210.31,0.03]
[1756896606784,26.06,210.33,210.31,0.7]
[1756896608461,26.06,210.33,210.32,0.67]
[1756896608670,26.06,210.33,210.31,0.03]
[1756896608885,26.06,210.33,210.32,0.67]
[1756896610097,0.06,210.33,210.32,3.51772695]
[1756896610270,0.06,210.33,210.32,45.19238651]
[1756896611673,0.06,210.33,210.32,48.72599302]
[1756896613592,0.06,210.33,210.32,50.32042405]
[1756896615893,0.06,210.33,210.32,45.54576449]
[1756896616078,0.06,210.33,210.32,44.87576449]
[1756896616281,0.06,210.33,210.31,0.03]
[1756896616583,0.06,210.33,210.31,36.93]
[1756896618188,0.06,210.33,210.31,0.03]
[1756896618189,0.61,210.32,210.31,0.03]
[1756896618393,5.05215798,210.32,210.31,0.03]
[1756896619714,9.80681754,210.32,210.31,0.03]
[1756896620213,26.06,210.33,210.31,0.03]
[1756896620414,26.06,210.33,210.31,0.74]
[1756896620915,0.06,210.33,210.31,4.47215798]
[1756896621091,0.06,210.33,210.31,5.18215798]
[1756896621431,0.06,210.33,210.32,5.15215798]
[1756896622795,0.06,210.33,210.31,0.03]
[1756896626295,0.67,210.33,210.31,0.03]
[1756896626496,0.06,210.33,210.31,0.03]
[1756896626909,0.06,210.33,210.31,0.74]
[1756896627509,0.06,210.33,210.31,0.03]
[1756896630523,0.06,210.33,210.32,5.15215798]
[1756896632720,0.06,210.33,210.32,46.80681754]
[1756896633224,0.06,210.33,210.32,37.61]
[1756896633525,0.06,210.33,210.31,0.03]
[1756896634724,0.06,210.33,210.31,0.74]
[1756896636225,0.06,210.33,210.32,5.15215798]
[1756896636602,0.06,210.33,210.32,0.71]
[1756896637128,0.06,210.33,210.31,0.03]
[1756896637302,0.06,210.33,210.31,0.74]
[1756896637507,0.06,210.33,210.32,0.71]
[1756896638605,0.06,210.33,210.32,5.15215798]
[1756896638940,0.06,210.33,210.32,9.90681754]
[1756896639102,0.06,210.33,210.32,0.71]
[1756896639302,0.06,210.33,210.32,9.90681754]
[1756896640038,0.06,210.33,210.32,46.80681754]
[1756896643711,0.06,210.33,210.32,42.36465956]
[1756896643910,0.06,210.33,210.32,46.80681754]
[1756896644934,0.06,210.33,210.32,36.88]
[1756896645623,0.06,210.33,210.32,37.59]
[1756896647531,0.06,210.33,210.32,36.88]
[1756896649139,0.06,210.33,210.31,79.73]
[1756896649328,0.06,210.33,210.32,36.88]
[1756896649922,0.06,210.33,210.32,36.91]
[1756896650324,0.06,210.33,210.32,37.62]
[1756896650517,0.06,210.33,210.32,42.06215798]
[1756896651016,0.06,210.33,210.32,5.18215798]
[1756896651231,0.06,210.33,210.32,42.06215798]
[1756896652635,0.06,210.33,210.32,46.81681754]
[1756896657243,0.06,210.33,210.32,0.03]
[1756896657452,0.06,210.33,210.32,36.91]
[1756896657954,0.06,210.33,210.32,42.06215798]
[1756896658134,0.06,210.33,210.32,46.81681754]
[1756896660640,0.06,210.33,210.32,42.06215798]
[1756896660819,0.06,210.33,210.32,5.18215798]
[1756896661019,0.06,210.33,210.32,41.35215798]
[1756896661424,0.06,210.33,210.32,36.91]
[1756896662237,0.06,210.33,210.32,42.06215798]
[1756896662438,0.06,210.33,210.32,46.81681754]
[1756896663455,0.06,210.33,210.32,42.06215798]
[1756896664144,0.06,210.33,210.32,5.18215798]
[1756896664341,0.06,210.33,210.32,36.91]
[1756896664736,0.06,210.33,210.32,0.03]
[1756896665050,0.67,210.33,210.32,36.91]
[1756896665842,5.4244335,210.33,210.32,0.03]
[1756896666355,9.86659148,210.33,210.32,0.03]
[1756896668640,5.4244335,210.33,210.32,0.03]
[1756896670254,4.8144335,210.33,210.32,0.03]
[1756896671159,5.4244335,210.33,210.32,0.03]
[1756896673268,0.06,210.33,210.32,0.03]
[1756896673570,0.67,210.33,210.32,0.03]
[1756896674061,0.06,210.33,210.32,0.03]
[1756896674448,0.67,210.33,210.32,0.03]
[1756896675261,0.06,210.33,210.32,0.03]
[1756896675565,0.67,210.33,210.32,0.03]
[1756896675963,3.51561301,210.33,210.32,0.03]
[1756896676835,0.06,210.33,210.32,0.03]
[1756896679263,2.90561301,210.33,210.32,0.03]
[1756896680058,7.66004651,210.33,210.32,0.03]
[1756896681064,4.8144335,210.33,210.32,0.03]
[1756896681271,7.66004651,210.33,210.32,0.03]
[1756896684786,13.59559401,210.32,210.31,0.03]
[1756896685080,21.19586658,210.32,210.31,0.03]
[1756896685264,21.80586658,210.32,210.31,0.03]
[1756896685763,23.7125806,210.32,210.31,0.03]
[1756896686075,39.59559401,210.3,210.29,0.03]
[1756896686282,42.44120702,210.3,210.29,0.03]
[1756896686464,43.05120702,210.3,210.29,0.03]
[1756896687066,47.80631876,210.3,210.29,0.03]
[1756896688784,84.66631876,210.3,210.29,0.03]
[1756896694290,86.57303277,210.3,210.29,0.03]
[1756896694799,85.96303277,210.3,210.29,0.03]
[1756896695176,86.57303277,210.3,210.29,0.03]
[1756896695385,85.96303277,210.3,210.29,0.03]
[1756896695992,86.57303277,210.3,210.28,0.03]
[1756896696185,22.44170131,210.29,210.28,0.03]
[1756896696386,23.05170131,210.29,210.28,0.03]
[1756896696592,61.81859712,210.29,210.28,0.03]
[1756896697585,66.57393498,210.29,210.28,0.03]
[1756896698600,66.57393498,210.29,210.26,0.03]
[1756896698776,42.44120702,210.23,210.22,0.03]
[1756896699398,42.44120702,210.23,210.22,0.71]
[1756896699594,7.60230805,210.23,210.22,0.71]
[1756896702993,7.60230805,210.23,210.22,0.03]
[1756896703298,9.50947662,210.23,210.22,0.03]
[1756896707199,59.96507063,210.23,210.22,0.03]
[1756896708119,60.57507063,210.23,210.22,0.03]
[1756896708587,66.57556492,210.23,210.22,0.03]
[1756896710512,65.96556492,210.23,210.22,0.03]
[1756896713592,26.0,210.2,210.19,0.03]
[1756896713805,42.44120702,210.2,210.19,1e-08]
[1756896714009,91.16191075,210.2,210.19,1e-08]
[1756896714208,13.59559401,210.19,210.17,0.1]
[1756896714390,16.44120702,210.18,210.17,0.1]
[1756896714595,53.30120702,210.18,210.17,0.1]
[1756896714806,16.44120702,210.18,210.17,0.1]
[1756896715114,53.30120702,210.18,210.17,0.1]
[1756896715414,4.75895873,210.13,210.07,0.1]
[1756896715716,2.84561301,210.1,210.07,0.1]
[1756896715914,2.84561301,210.11,210.07,0.1]
[1756896716096,2.84561301,210.11,210.08,0.7]
[1756896716614,2.84561301,210.1,210.08,0.7]
[1756896717316,2.84561301,210.09,210.08,0.7]
[1756896717824,2.84561301,210.1,210.08,0.7]
[1756896718000,10.45198969,210.11,210.08,0.7]
[1756896718417,2.84561301,210.1,210.08,0.7]
[1756896718915,7.60525127,210.1,210.08,0.7]
[1756896719320,2.84561301,210.09,210.08,0.7]
[1756896719709,7.60525127,210.1,210.08,0.7]
[1756896720408,2.84561301,210.1,210.08,0.7]
[1756896720607,5.69122602,210.11,210.08,0.7]
[1756896722502,10.45066488,210.11,210.08,0.7]
[1756896722703,26.0,210.08,210.07,0.1]
[1756896722919,2.84561301,210.11,210.07,0.1]
[1756896723219,2.84561301,210.1,210.07,0.1]
[1756896723414,2.84561301,210.1,210.08,0.7]
[1756896723614,10.45070974,210.11,210.07,0.1]
[1756896723921,10.45070974,210.11,210.09,0.7]
[1756896724323,10.45070974,210.11,210.1,0.7]
[1756896724498,10.45070974,210.11,210.08,0.7]
[1756896724699,10.45070974,210.11,210.09,0.7]
[1756896724899,10.45070974,210.11,210.1,0.7]
[1756896725117,2.84561301,210.11,210.1,0.7]
[1756896726911,7.60502474,210.11,210.1,0.7]
[1756896727821,11.06063775,210.11,210.07,0.1]
[1756896728018,2.84561301,210.08,210.07,0.1]
[1756896728410,5.72122602,210.08,210.07,0.1]
[1756896728726,10.48131741,210.08,210.07,0.1]
[1756896729113,10.48131741,210.08,210.07,0.8]
[1756896729524,10.48131741,210.08,210.07,0.1]
[1756896731237,2.87561301,210.08,210.07,0.8]
[1756896731416,2.84561301,210.11,210.07,0.8]
[1756896731734,10.45223889,210.11,210.07,0.8]
[1756896733043,2.84561301,210.11,210.07,0.8]
[1756896733225,26.0,210.12,210.07,5.56029065]
[1756896733532,4.76057791,210.11,210.08,0.67]
[1756896733735,26.0,210.12,210.08,0.67]
[1756896734523,28.84561301,210.12,210.08,0.67]
[1756896735012,28.84561301,210.12,210.07,4.86029065]
[1756896735334,26.0,210.12,210.08,0.67]
[1756896735515,30.45556268,210.12,210.08,0.67]
[1756896735718,30.45556268,210.12,210.09,0.67]
[1756896735917,30.45556268,210.12,210.07,0.1]
[1756896736228,30.45556268,210.12,210.1,0.67]
[1756896736838,30.45556268,210.12,210.07,0.77]
[1756896737040,30.45556268,210.12,210.08,0.67]
[1756896737213,30.45556268,210.12,210.09,0.67]
[1756896738534,30.45556268,210.12,210.1,0.67]
[1756896738714,30.45556268,210.12,210.07,5.53027525]
[1756896738917,30.45556268,210.12,210.08,0.67]
[1756896739416,30.45556268,210.12,210.09,0.67]
[1756896740340,0.06,210.17,210.11,4.45556268]
[1756896740517,0.06,210.17,210.16,4.45556268]
[1756896741034,0.06,210.17,210.16,5.12556268]
[1756896741833,0.06,210.17,210.16,0.67]
[1756896742038,0.06,210.17,210.14,9.31583793]
[1756896742241,0.06,210.17,210.14,5.53027525]
[1756896742646,0.06,210.17,210.14,0.67]
[1756896743455,0.06,210.17,210.15,0.67]
[1756896743823,0.06,210.17,210.16,0.67]
[1756896745066,4.51556268,210.17,210.14,0.67]
[1756896745355,4.51556268,210.17,210.15,0.67]
[1756896745927,0.06,210.17,210.15,0.67]
[1756896746127,0.06,210.17,210.12,4.45556268]
[1756896746437,0.06,210.17,210.16,4.45556268]
[1756896746938,0.06,210.17,210.16,5.12556268]
[1756896749557,0.06,210.2,210.16,9.88384208]
[1756896749731,0.06,210.2,210.19,4.45556268]
[1756896750236,0.06,210.22,210.19,9.88316294]
[1756896750436,0.06,210.22,210.21,4.45556268]
[1756896750658,0.06,210.22,210.2,0.67]
[1756896750869,0.06,210.22,210.21,4.45556268]